fUST/lending_fUST_20250831
["ID","MTS","AMOUNT","RATE_DAILY","PERIOD"]
[382356461,1756585846598,-880.7,0.00019178,2]
[382356462,1756585846607,-480.0,0.00019178,2]
[382356464,1756585846619,-480.0,0.00019178,2]
[382356466,1756585846630,-1409.27,0.00019178,2]
[382356469,1756585846640,-480.0,0.00019178,2]
[382356470,1756585846650,-480.0,0.00019178,2]
[382356476,1756585846811,-480.0,0.00019178,2]
[382356478,1756585846821,-480.0,0.00019178,2]
[382356480,1756585846830,-480.0,0.00019178,2]
[382356482,1756585846841,-480.0,0.00019178,2]
[382356484,1756585846851,-1000.0,0.00019178,2]
[382356486,1756585846861,-480.0,0.00019178,2]
[382356487,1756585846871,-151.0,0.00019178,2]
[382356488,1756585846881,-480.0,0.00019178,2]
[382356489,1756585846890,-480.0,0.00019178,2]
[382356490,1756585846900,-151.0,0.00019178,2]
[382356491,1756585846910,-480.0,0.00019178,2]
[382356492,1756585846920,-480.0,0.00019178,2]
[382356493,1756585846930,-480.0,0.00019178,2]
[382356494,1756585846939,-480.0,0.00019178,2]
[382356495,1756585846949,-480.0,0.00019178,2]
[382356496,1756585846959,-480.0,0.00019178,2]
[382356497,1756585846968,-480.0,0.00019178,2]
[382356498,1756585846979,-1493.68,0.00019178,2]
[382356499,1756585846988,-919.22,0.00019178,2]
[382356500,1756585846998,-480.0,0.00019178,2]
[382356501,1756585847007,-480.0,0.00019178,2]
[382356502,1756585847016,-480.0,0.00019178,2]
[382356503,1756585847025,-1739.01,0.00019178,2]
[382356504,1756585847035,-480.0,0.00019178,2]
[382356505,1756585847045,-569.47,0.00019178,2]
[382356506,1756585847054,-1391.14,0.00019178,2]
[382356507,1756585847063,-480.0,0.00019178,2]
[382356508,1756585847074,-480.0,0.00019178,2]
[382356509,1756585847084,-480.0,0.00019178,2]
[382356510,1756585847093,-821.03,0.00019178,2]
[382356511,1756585847103,-383.95059872,0.00019178,2]
[382356512,1756585847113,-480.0,0.00019178,2]
[382356513,1756585847122,-480.0,0.00019178,2]
[382356514,1756585847131,-480.0,0.00019178,2]
[382356515,1756585847140,-786.91,0.00019178,2]
[382356516,1756585847150,-480.0,0.00019178,2]
[382356517,1756585847159,-591.35,0.00019178,2]
[382356518,1756585847168,-480.0,0.00019178,2]
[382356519,1756585847178,-480.0,0.00019178,2]
[382356520,1756585847187,-480.0,0.00019178,2]
[382356521,1756585847197,-480.0,0.00019178,2]
[382356522,1756585847206,-914.41,0.00019178,2]
[382356523,1756585847215,-480.0,0.00019178,2]
[382356524,1756585847225,-798.87,0.00019178,2]
[382356525,1756585847234,-599.22,0.00019178,2]
[382356526,1756585847244,-864.6,0.00019178,2]
[382356527,1756585847253,-480.0,0.00019178,2]
[382356528,1756585847262,-724.39,0.00019178,2]
[382356529,1756585847272,-151.0,0.00019178,2]
[382356530,1756585847281,-480.0,0.00019178,2]
[382356531,1756585847291,-480.0,0.00019178,2]
[382356532,1756585847300,-480.0,0.00019178,2]
[382356533,1756585847309,-480.0,0.00019178,2]
[382356534,1756585847318,-569.68838481,0.00019178,2]
[382356535,1756585847328,-480.0,0.00019178,2]
[382356536,1756585847338,-731.86,0.00019178,2]
[382356537,1756585847347,-709.97,0.00019178,2]
[382356538,1756585847357,-480.0,0.00019178,2]
[382356539,1756585847367,-480.0,0.00019178,2]
[382356540,1756585847376,-480.0,0.00019178,2]
[382356541,1756585847386,-480.0,0.00019178,2]
[382356542,1756585847395,-1737.93,0.00019178,2]
[382356543,1756585847405,-495.01,0.00019178,2]
[382356544,1756585847414,-480.0,0.00019178,2]
[382356545,1756585847424,-480.0,0.00019178,2]
[382356546,1756585847433,-480.0,0.00019178,2]
[382356547,1756585847443,-491.77,0.00019178,2]
[382356548,1756585847452,-497.17,0.00019178,2]
[382356549,1756585847462,-1729.43,0.00019178,2]
[382356550,1756585847471,-531.13,0.00019178,2]
[382356551,1756585847480,-500.0,0.00019178,2]
[382356552,1756585847490,-684.92,0.00019178,2]
[382356553,1756585847499,-480.0,0.00019178,2]
[382356554,1756585847510,-480.0,0.00019178,2]
[382356555,1756585847523,-152.72881078,0.00019178,2]
[382356556,1756585847532,-480.0,0.00019178,2]
[382356557,1756585847542,-480.0,0.00019178,2]
[382356558,1756585847551,-1496.96,0.00019178,2]
[382356559,1756585847560,-1109.99,0.00019178,2]
[382356560,1756585847570,-500.0,0.00019178,2]
[382356561,1756585847579,-601.34,0.00019178,2]
[382356562,1756585847589,-1074.51,0.00019178,2]
[382356563,1756585847600,-491.75,0.00019178,2]
[382356564,1756585847609,-1673.31,0.00019178,2]
[382356565,1756585847618,-480.0,0.00019178,2]
[382356566,1756585847627,-1006.78,0.00019178,2]
[382356567,1756585847636,-232.11055838,0.00019178,2]
[382356568,1756585848761,-1099.06944162,0.00019178,2]
[382356569,1756585848770,-480.0,0.00019178,2]
[382356570,1756585848780,-158.13550531,0.00019178,2]
[382356571,1756585848790,-480.0,0.00019178,2]
[382356572,1756585848799,-538.27327714,0.00019178,2]
[382356573,1756585848815,-314.86672286,0.00019178,2]
[382356574,1756585848825,-27.6878216,0.00019178,2]
[382356575,1756585848837,-713.4321784,0.00019178,2]
[382356576,1756585848846,-480.0,0.00019178,2]
[382356577,1756585848856,-480.0,0.00019178,2]
[382356578,1756585848865,-177.68653425,0.00019178,2]
[382356579,1756585879459,-241.19559853,0.00018711,2]
[382356580,1756585882161,-69.14677688,0.00018711,2]
[382356581,1756586064762,-266.99393775,0.00018565,2]
[382356582,1756586066385,-222.12042826,0.00018565,2]
[382356583,1756586069010,-151.37659072,0.00018012,2]
[382356584,1756586071193,-348.62340928,0.00018012,2]
[382356585,1756586071216,-118.1360596,0.00018379,2]
[382356588,1756586074105,-202.77507879,0.00018012,2]
[382356589,1756586075838,-151.34458855,0.00018012,2]
[382356590,1756586077296,-145.88033266,0.00018012,2]
[382356591,1756586077318,-91.06483026,0.00018379,2]
[382356592,1756586080478,-276.26400764,0.00018379,2]
[382356593,1756586084281,-191.38124444,0.00018379,2]
[382356594,1756586086538,-207.8141755,0.00018379,2]
[382356595,1756586088085,-279.54054092,0.00018379,2]
[382356596,1756586090390,171.6182717,0.00017828,2]
[382356597,1756586090414,-156.22643591,0.00018379,2]
[382356598,1756586095595,-236.94516292,0.00018379,2]
[382356599,1756586097735,-309.55653536,0.00018379,2]
[382356600,1756586099314,-169.27524559,0.00018379,2]
[382356601,1756586100923,-220.14095777,0.00018379,2]
[382356602,1756586102688,-190.7112023,0.00018379,2]
[382356603,1756586292743,776.24514843,0.00018011,2]
[382356604,1756586326953,367.496616,0.00013699,2]
[382356606,1756586370752,236.253361,0.00018002,2]
[382356609,1756586461560,1263.78657152,0.00018011,2]
[382356610,1756586461583,1289.15703027,0.00018011,2]
[382357912,1756586605388,-20000.0,0.0002405,30]
[382357914,1756586605419,-216.25802849,0.000241,30]
[382357915,1756586605446,-529.89603018,0.000241,30]
[382357917,1756586605497,-1000.0,0.00024658,30]
[382357918,1756586605531,-160.0,0.00025,30]
[382357920,1756586605556,-160.0,0.00025,30]
[382357921,1756586605578,-160.0,0.00025,30]
[382357922,1756586605601,-160.0,0.00025,30]
[382357924,1756586605624,-232.73020027,0.00025,30]
[382357925,1756586605647,-845.75060209,0.00025,30]
[382357926,1756586605674,-217.34977173,0.00025,30]
[382357928,1756586605718,-200.0,0.00025435,30]
[382357929,1756586605746,-200.0,0.00025435,30]
[382357931,1756586605788,-200.0,0.00025591,30]
[382357932,1756586605815,-200.0,0.00025591,30]
[382357934,1756586605846,-200.0,0.000276,30]
[382357935,1756586605873,-200.0,0.000276,30]
[382357937,1756586605899,-215.26092189,0.000276,30]
[382357938,1756586605929,-200.0,0.00027962,30]
[382357939,1756586605956,-200.0,0.00027962,30]
[382357941,1756586605984,-200.0,0.00027962,30]
[382357942,1756586606013,-160.0,0.00028,30]
[382357944,1756586606041,-1909.71883548,0.00028,120]
[382357945,1756586606070,-209.0,0.0002827,30]
[382357947,1756586606100,-209.0,0.0002899,30]
[382357948,1756586606129,-819.107023,0.00029589,120]
[382357949,1756586606157,-209.0,0.000297,30]
[382357951,1756586606186,-200.0,0.00029774,120]
[382357952,1756586606213,-300.0,0.0003,60]
[382357953,1756586606241,-200.0,0.0003,120]
[382357955,1756586606269,-177.0,0.0003,120]
[382357956,1756586606299,-160.0,0.0003,30]
[382357958,1756586606328,-522.2640819,0.0003021,30]
[382357959,1756586606356,-238.40343822,0.00030306,30]
[382357960,1756586606383,-209.0,0.0003041,30]
[382357965,1756586606624,-591.34,0.00030845,30]
[382357966,1756586606655,-328.26886748,0.00031,60]
[382357968,1756586606684,-154.0,0.00031,120]
[382357969,1756586606713,-4006.90997936,0.00031,120]
[382357971,1756586606741,-216.25802849,0.00031,30]
[382357972,1756586606769,-845.75060209,0.00031,30]
[382357973,1756586606798,-1432.0,0.00031057,60]
[382357975,1756586606825,-209.0,0.0003112,30]
[382357976,1756586606852,-579.24,0.00031161,60]
[382357978,1756586606877,-1538.1,0.00031168,60]
[382357979,1756586606902,-150.84,0.00031191,60]
[382357980,1756586606932,-1637.0,0.00031215,60]
[382357982,1756586606959,-150.0,0.00031855,60]
[382357983,1756586606988,-269887.71728859,0.00032,60]
[382357985,1756586607015,-121957.72262459,0.00032,60]
[382357986,1756586607040,-2008.04,0.00032,32]
[382357987,1756586607066,-200.0,0.00032,120]
[382357989,1756586607092,-109928.63491091,0.00032,60]
[382357990,1756586607118,-18380.41055372,0.00032,60]
[382357991,1756586607144,-20000.0,0.000328,60]
[382357993,1756586607173,-3607.24,0.00032876,120]
[382357994,1756586607199,-10000.38349576,0.00033,30]
[382357996,1756586607225,-90967.2935988,0.000332,117]
[382357997,1756586607252,-90967.29359876,0.000332,117]
[382357998,1756586607279,-90967.29359876,0.000332,117]
[382358000,1756586607305,-90967.29359876,0.000332,117]
[382358001,1756586607331,-90967.29359876,0.000332,117]
[382358003,1756586607357,-200.0,0.00033555,120]
[382358004,1756586607382,-200.0,0.00033555,120]
[382358005,1756586607408,-200.0,0.00033555,120]
[382358007,1756586607434,-456.0,0.00034,120]
[382358008,1756586607461,-200.0,0.000345,120]
[382358009,1756586607487,-200.0,0.000345,120]
[382358010,1756586607512,-200.0,0.000345,120]
[382358011,1756586607538,-819.107023,0.00034521,120]
[382358012,1756586607564,-154.0,0.000346,120]
[382358013,1756586607591,-3607.24,0.00034794,120]
[382358014,1756586607616,-2000.0,0.00035,120]
[382358015,1756586607642,-533.42,0.00035,120]
[382358016,1756586607667,-1706.72391514,0.00035,120]
[382358018,1756586607693,-1075.43516269,0.00035,120]
[382358019,1756586607719,-534.61020852,0.00035,120]
[382358020,1756586607745,-200.0,0.00035462,120]
[382358022,1756586607771,-200.0,0.00035462,120]
[382358023,1756586607796,-200.0,0.00035462,120]
[382358024,1756586607824,-3607.24,0.00036712,120]
[382358026,1756586607850,-200.0,0.000368,120]
[382358027,1756586607876,-200.0,0.000368,120]
[382358029,1756586607903,-200.0,0.000368,120]
[382358030,1756586607932,-6333.44431944,0.00036896,60]
[382358031,1756586607960,-157.3,0.000375,112]
[382358036,1756586608195,-70000.0,0.0003798,80]
[382358037,1756586608223,-8138.80551786,0.00038,120]
[382358039,1756586608250,-80000.0,0.0003819,85]
[382358040,1756586608277,-154.0,0.000382,120]
[382358042,1756586608302,-4046.0,0.000384,120]
[382358043,1756586608328,-202.0,0.0003852,49]
[382358044,1756586608356,-3607.24,0.0003863,120]
[382358046,1756586608383,-756.91230186,0.000387,120]
[382358047,1756586608409,-200.0,0.000389,120]
[382358049,1756586608437,-200.0,0.000389,120]
[382358050,1756586608464,-425.0872307,0.0003899,120]
[382358051,1756586608490,-997.68416355,0.00039,120]
[382358053,1756586608520,-9464.94993564,0.0003926,33]
[382358054,1756586608546,-90000.0,0.0003942,90]
[382358056,1756586608573,-819.107023,0.00039452,120]
[382358057,1756586608599,-48000.0,0.0003946,90]
[382358058,1756586608625,-703.71350115,0.0004,120]
[382358060,1756586608652,-2014582.08493162,0.0004,120]
[382358061,1756586608678,-1631.91202044,0.0004,120]
[382358062,1756586608704,-1000.0,0.0004,120]
[382358064,1756586608730,-2000.0,0.0004,60]
[382358065,1756586608757,-300.0,0.0004,120]
[382358067,1756586608783,-2011.0,0.0004,120]
[382358068,1756586608808,-257.85399657,0.0004,120]
[382358069,1756586608833,-54624.73011948,0.0004,120]
[382358071,1756586608858,-512.52252455,0.0004,120]
[382358072,1756586608884,-160.0,0.0004,120]
[382358074,1756586608910,-160.0,0.0004,120]
[382358075,1756586608937,-160.0,0.0004,120]
[382358076,1756586608963,-160.0,0.0004,120]
[382358078,1756586608989,-232.73020027,0.0004,120]
[382358079,1756586609015,-216.25802849,0.0004,120]
[382358080,1756586609040,-529.89603018,0.0004,120]
[382358082,1756586609066,-845.75060209,0.0004,120]
[382358083,1756586609091,-500.0,0.00040232,30]
[382358085,1756586609117,-3607.24,0.00040547,120]
[382358086,1756586609145,-9464.94993564,0.0004075,36]
[382358087,1756586609171,-500.0,0.00040759,30]
[382358089,1756586609196,-12334.16,0.000409,60]
[382358090,1756586609221,-200.0,0.00041,120]
[382358092,1756586609247,-200.0,0.00041,120]
[382358093,1756586609272,-500.0,0.00041025,30]
[382358094,1756586609299,-500.0,0.00041096,31]
[382358096,1756586609325,-500.0,0.00041096,31]
[382358097,1756586609351,-500.0,0.00041096,31]
[382358099,1756586609377,-500.0,0.00041096,31]
[382358100,1756586609402,-500.0,0.00041096,31]
[382358101,1756586609428,-181.6796767,0.00041096,31]
[382358103,1756586609454,-500.0,0.00041096,31]
[382358104,1756586609480,-500.0,0.00041096,31]
[382358105,1756586609507,-500.0,0.00041096,31]
[382358107,1756586609533,-500.0,0.00041096,31]
[382358111,1756586609716,-500.0,0.00041096,31]
[382358112,1756586609744,-500.0,0.00041096,31]
[382358113,1756586609770,-500.0,0.00041096,31]
[382358115,1756586609796,-353.51996408,0.00041096,31]
[382358116,1756586609822,-500.0,0.00041096,31]
[382358118,1756586609849,-500.0,0.00041096,31]
[382358119,1756586609876,-500.0,0.00041096,31]
[382358120,1756586609901,-500.0,0.00041096,31]
[382358122,1756586609929,-500.0,0.00041096,31]
[382358123,1756586609955,-230.843636,0.00041096,31]
[382358125,1756586609980,-500.0,0.00041096,31]
[382358126,1756586610010,-500.0,0.00041096,31]
[382358127,1756586610036,-577.59272401,0.00041096,31]
[382358129,1756586610062,-351.5,0.000413,30]
[382358130,1756586610089,-200.0,0.000414,120]
[382358131,1756586610115,-200.0,0.000414,120]
[382358133,1756586610141,-200.0,0.000414,120]
[382358134,1756586610167,-154.0,0.000417,120]
[382358136,1756586610198,-1000.0,0.0004193,30]
[382358137,1756586610228,-1000.0,0.0004193,30]
[382358139,1756586610258,-579.0,0.0004193,30]
[382358140,1756586610284,-1000.0,0.00042,120]
[382358141,1756586610311,-100000.0,0.0004219,90]
[382358143,1756586610340,-9464.94993564,0.00042239,39]
[382358144,1756586610367,-500.0,0.00042279,30]
[382358146,1756586610392,-500.0,0.00042374,30]
[382358147,1756586610419,-3607.24,0.00042465,120]
[382358148,1756586610446,-2000.0,0.000425,60]
[382358150,1756586610472,-5000.0,0.000425,100]
[382358151,1756586610498,-196.3,0.000426,120]
[382358153,1756586610523,-6511.95805077,0.00043,30]
[382358154,1756586610549,-40000.0,0.00043,30]
[382358155,1756586610575,-96031.31268832,0.00043,120]
[382358157,1756586610600,-242.35539664,0.00043,120]
[382358158,1756586610626,-200.0,0.000431,120]
[382358159,1756586610652,-200.0,0.000431,120]
[382358161,1756586610683,-200.0,0.00043334,120]
[382358162,1756586610709,-5000.0,0.000435,120]
[382358164,1756586610737,-5111.63317607,0.00043634,92]
[382358165,1756586610768,-200.0,0.0004369,120]
[382358167,1756586610816,-9464.94993564,0.00043728,42]
[382358168,1756586610842,-500.0,0.00043764,30]
[382358169,1756586610868,-1000.0,0.000438,90]
[382358171,1756586610894,-480.0,0.00043835,120]
[382358172,1756586610922,-480.0,0.00043835,120]
[382358174,1756586610951,-999.69,0.00043835,120]
[382358175,1756586610977,-500.0,0.00043835,120]
[382358176,1756586611006,-500.0,0.00043835,120]
[382358178,1756586611033,-1000.0,0.00044,120]
[382358179,1756586611059,-1126.0,0.00044,120]
[382358181,1756586611084,-826.1725772,0.00044,120]
[382358182,1756586611110,-5000.0,0.00044,120]
[382358183,1756586611136,-480.0,0.00044109,120]
[382358185,1756586611163,-480.0,0.00044109,120]
[382358186,1756586611191,-999.69,0.00044109,120]
[382358188,1756586611217,-500.0,0.00044109,120]
[382358189,1756586611245,-613.85,0.00044109,120]
[382358190,1756586611271,-362.01967823,0.000442,120]
[382358192,1756586611296,-500.0,0.00044368,30]
[382358193,1756586611322,-480.0,0.00044383,120]
[382358195,1756586611348,-442.9680607,0.00044383,120]
[382358196,1756586611375,-999.69,0.00044383,120]
[382358197,1756586611401,-500.0,0.00044383,120]
[382358199,1756586611428,-3607.24,0.00044383,120]
[382358200,1756586611454,-819.107023,0.00044384,120]
[382358202,1756586611480,-100000.0,0.00044444,120]
[382358203,1756586611506,-480.86855196,0.00044657,120]
[382358204,1756586611534,-999.69,0.00044657,120]
[382358206,1756586611561,-499.46033499,0.00044657,120]
[382358207,1756586611587,-702.28,0.00044709,30]
[382358209,1756586611614,-170.76195512,0.00044887,60]
[382358210,1756586611639,-500.0,0.00044889,30]
[382358211,1756586611665,-15532.560654,0.0004489,90]
[382358213,1756586611691,-503.51200899,0.0004491,30]
[382358214,1756586611721,-999.69,0.00044931,120]
[382358216,1756586611748,-1000.0,0.00044999,120]
[382358217,1756586611775,-906.78301427,0.00044999,30]
[382358218,1756586611800,-4616.84574561,0.00045,120]
[382358220,1756586611826,-605.663597,0.00045,120]
[382358221,1756586611854,-200.0,0.00045,120]
[382358223,1756586611880,-725.0,0.00045,30]
[382358224,1756586611906,-1999.999999,0.00045,60]
[382358225,1756586611936,-44745.4496461,0.00045,90]
[382358542,1756586636061,-58102.4003539,0.00045,90]
[382358543,1756586636090,-16909.9470858,0.00045,120]
[382358544,1756586636116,-168.25653146,0.00045,120]
[382358546,1756586636144,-10312.01374758,0.00045,120]
[382358547,1756586636169,-2525.95,0.00045,90]
[382358548,1756586636195,-1000.3587532,0.00045,120]
[382358550,1756586636223,-220.06397047,0.00045,120]
[382358551,1756586636250,-19097.18,0.00045,90]
[382358553,1756586636276,-12215.34271266,0.00045,120]
[382358554,1756586636302,-367.11610655,0.00045,120]
[382358555,1756586636330,-6145.57894902,0.00045,120]
[382358557,1756586636357,-5000.00050954,0.00045,120]
[382358558,1756586636384,-1000.0,0.00045,120]
[382358560,1756586636410,-250000.0,0.00045,60]
[382358561,1756586636437,-500.0,0.00045,30]
[382358562,1756586636464,-200.0,0.000452,120]
[382358564,1756586636491,-341.49464,0.000452,120]
[382358565,1756586636518,-999.69,0.00045205,120]
[382358567,1756586636547,-9464.94993564,0.00045217,45]
[382358568,1756586636575,-154.0,0.000453,120]
[382358569,1756586636601,-383.18994,0.000454,120]
[382358571,1756586636629,-999.69,0.00045479,120]
[382358572,1756586636658,-999.69,0.00045753,120]
[382358573,1756586636684,-501.10002502,0.00045823,30]
[382358575,1756586636710,-1000.0,0.00045999,120]
[382358576,1756586636736,-6023.00448386,0.00045999,120]
[382358578,1756586636761,-40000.0,0.00046,30]
[382358579,1756586636787,-1000.0,0.00046,120]
[382358580,1756586636814,-1000.0,0.00046,120]
[382358582,1756586636840,-5958.0,0.00046,120]
[382358583,1756586636867,-999.69,0.00046027,120]
[382358585,1756586636897,-1000.0,0.00046123,60]
[382358586,1756586636928,-1000.0,0.00046123,60]
[382358587,1756586636957,-1000.0,0.00046123,60]
[382358589,1756586636986,-999.69,0.00046301,120]
[382358590,1756586637014,-3607.24,0.00046301,120]
[382358594,1756586637041,-500.0,0.00046443,31]
[382358596,1756586637275,-151.0,0.00046443,32]
[382358597,1756586637302,-250.0,0.00046443,30]
[382358599,1756586637330,-500.0,0.00046443,31]
[382358600,1756586637356,-250.0,0.00046443,31]
[382358602,1756586637383,-250.0,0.00046443,31]
[382358603,1756586637409,-236.46710854,0.00046443,32]
[382358604,1756586637438,-250.0,0.00046443,30]
[382358606,1756586637465,-250.0,0.00046443,32]
[382358607,1756586637493,-250.0,0.00046443,31]
[382358609,1756586637521,-250.0,0.00046443,31]
[382358610,1756586637549,-500.0,0.00046443,30]
[382358611,1756586637574,-151.0,0.00046443,31]
[382358613,1756586637600,-151.0,0.00046443,30]
[382358614,1756586637627,-250.0,0.00046443,32]
[382358615,1756586637654,-151.0,0.00046443,30]
[382358617,1756586637683,-151.0,0.00046443,30]
[382358618,1756586637711,-250.0,0.00046443,32]
[382358620,1756586637736,-151.0,0.00046443,31]
[382358621,1756586637763,-151.0,0.00046443,31]
[382358622,1756586637789,-250.0,0.00046443,32]
[382358624,1756586637815,-156.587,0.00046443,32]
[382358625,1756586637842,-16592.0,0.00046443,32]
[382358627,1756586637867,-162.380719,0.00046443,32]
[382358628,1756586637894,-17205.904,0.00046443,30]
[382358629,1756586637922,-151.0,0.00046443,30]
[382358631,1756586637949,-151.0,0.00046443,30]
[382358632,1756586637976,-5049.51893531,0.00046443,30]
[382358634,1756586638003,-151.0,0.00046443,32]
[382358635,1756586638032,-151.0,0.00046443,32]
[382358636,1756586638060,-500.0,0.00046443,32]
[382358638,1756586638087,-181.08010149,0.00046443,30]
[382358639,1756586638115,-151.0,0.00046443,31]
[382358641,1756586638142,-151.0,0.00046443,32]
[382358642,1756586638169,-151.0,0.00046443,31]
[382358643,1756586638196,-500.0,0.00046443,30]
[382358645,1756586638223,-151.0,0.00046443,30]
[382358646,1756586638250,-151.0,0.00046443,31]
[382358648,1756586638276,-151.0,0.00046443,32]
[382358649,1756586638306,-1888.0,0.00046443,32]
[382358650,1756586638334,-1957.856,0.00046443,30]
[382358652,1756586638360,-165.98066104,0.00046443,31]
[382358653,1756586638388,-2105.41764886,0.00046443,30]
[382358655,1756586638417,-2183.31810187,0.00046443,32]
[382358656,1756586638444,-2546.43471469,0.0004648,120]
[382358658,1756586638472,-328.57,0.00046545,30]
[382358659,1756586638500,-999.69,0.00046575,120]
[382358660,1756586638531,-9464.94993564,0.00046707,49]
[382358662,1756586638560,-999.69,0.00046849,120]
[382358663,1756586638587,-500.0,0.0004698,60]
[382358665,1756586638615,-1000.0,0.00046999,120]
[382358666,1756586638643,-1000.0,0.00047,120]
[382358667,1756586638672,-999.69,0.00047123,120]
[382358669,1756586638698,-834.18147,0.000472,120]
[382358670,1756586638724,-200.0,0.000472,120]
[382358672,1756586638750,-370.74732,0.000472,120]
[382358673,1756586638775,-200.0,0.000473,120]
[382358674,1756586638803,-999.69,0.00047397,120]
[382358676,1756586638831,-999.69,0.00047671,120]
[382358677,1756586638856,-935.63158238,0.0004777,120]
[382358679,1756586638884,-999.69,0.00047945,120]
[382358680,1756586638912,-1000.0,0.00047999,120]
[382358681,1756586638940,-423.29549189,0.00048,60]
[382358683,1756586638968,-300.0,0.00048,120]
[382358684,1756586638993,-1000.0,0.00048,120]
[382358686,1756586639022,-20688.48194171,0.00048,30]
[382358687,1756586639053,-250000.0,0.00048,90]
[382358688,1756586639082,-1532.92803689,0.000481,120]
[382358690,1756586639120,-323.8179,0.000481,120]
[382358691,1756586639153,-9464.94993564,0.00048196,52]
[382358693,1756586639180,-999.69,0.00048219,120]
[382358694,1756586639207,-3607.24,0.00048219,120]
[382358696,1756586639235,-500000.0,0.0004822,30]
[382358697,1756586639264,-999.69,0.00048493,120]
[382358698,1756586639291,-999.69,0.00048767,120]
[382358700,1756586639318,-154.0,0.000489,120]
[382358701,1756586639344,-1000.0,0.00049,120]
[382358703,1756586639372,-999.69,0.00049041,120]
[382358704,1756586639400,-834.18147,0.000492,120]
[382358705,1756586639426,-268.36294,0.000492,120]
[382358707,1756586639455,-370.74732,0.000492,120]
[382358708,1756586639485,-72317.0,0.0004922,30]
[382358710,1756586639514,-999.69,0.00049315,120]
[382358711,1756586639544,-200.0,0.000494,120]
[382358712,1756586639573,-999.69,0.00049589,120]
[382358714,1756586639604,-9464.94993564,0.00049685,55]
[382358715,1756586639633,-1889.73751239,0.0004985,30]
[382358717,1756586639661,-247946.87421272,0.00049898,120]
[382358718,1756586639688,-1000.0,0.00049999,120]
[382358719,1756586639715,-323.01224051,0.0005,120]
[382358721,1756586639741,-1000.0,0.0005,120]
[382358722,1756586639768,-300.0,0.0005,120]
[382358724,1756586639796,-1000.0,0.0005,120]
[382358725,1756586639822,-1000.0,0.0005,120]
[382358726,1756586639848,-1000.0,0.0005,120]
[382358728,1756586639876,-5000.0,0.0005,120]
[382358729,1756586639904,-2000.0,0.0005,120]
[382358731,1756586639940,-100000.0,0.0005,30]
[382358732,1756586639968,-1998.28389328,0.0005,120]
[382358733,1756586639995,-250000.0,0.0005,120]
[382358735,1756586640024,-3607.24,0.00050136,120]
[382358736,1756586640057,-1000.0,0.00050735,90]
[382358740,1756586640243,-1000.0,0.00050735,90]
[382358741,1756586640277,-1000.0,0.00050735,90]
[382358743,1756586640307,-715.0,0.00050735,90]
[382358744,1756586640334,-4815.82669474,0.00050905,120]
[382358746,1756586640362,-10048.76857603,0.00050912,120]
[382358747,1756586640390,-10048.76857603,0.00050912,120]
[382358748,1756586640420,-10048.76857603,0.00050944,120]
[382358750,1756586640447,-4815.82669474,0.0005095,120]
[382358751,1756586640475,-10048.76857603,0.00050954,120]
[382358752,1756586640501,-4815.82669474,0.00050957,120]